bitfinex-derivatives/quotes_SOLF0:USTF0_20250821
["timestamp","ask_amount","ask_price","bid_price","bid_amount"]
[1755781870882,0.03545777,184.38,184.36,3.02]
[1755781872291,0.03545777,184.38,184.32,8.4458]
[1755781872783,0.03545777,184.38,184.33,3.02]
[1755781873184,0.03545777,184.38,184.34,3.02]
[1755781873384,0.03545777,184.38,184.32,5.4258]
[1755781873686,0.03545777,184.38,184.36,3.02]
[1755781874590,0.03545777,184.38,184.37,3.02]
[1755781876894,6.40250397,184.47,184.37,3.56]
[1755781876895,3.07,184.47,184.37,3.56]
[1755781877095,3.07,184.47,184.37,3.02]
[1755781878192,3.07,184.47,184.4,0.0412346]
[1755781887609,3.07,184.47,184.41,2.93]
[1755781888011,3.33250397,184.51,184.43,2.93]
[1755781888012,2.79,184.51,184.43,2.93]
[1755781888907,2.79,184.51,184.45,0.03444885]
[1755781890503,6.12250397,184.51,184.45,0.03444885]
[1755781890705,2.79,184.5,184.45,0.03444885]
[1755781891510,6.12250397,184.51,184.45,0.03444885]
[1755781892010,2.79,184.5,184.45,0.03444885]
[1755781892208,2.79,184.48,184.45,0.03444885]
[1755781892606,2.79,184.47,184.45,0.03444885]
[1755781892806,2.79,184.46,184.45,0.03444885]
[1755781893402,3.33250397,184.5,184.45,0.03444885]
[1755781893611,2.79,184.47,184.45,0.03444885]
[1755781894313,3.33250397,184.5,184.45,2.96444885]
[1755781894516,2.79,184.49,184.45,2.96444885]
[1755781894913,9.41981641,184.53,184.45,0.03444885]
[1755781895110,2.79,184.53,184.45,2.96444885]
[1755781896209,2.79,184.53,184.47,2.93]
[1755781896612,3.33250397,184.56,184.47,2.93]
[1755781896812,6.12250397,184.56,184.47,2.93]
[1755781897312,3.33250397,184.56,184.47,2.93]
[1755781897612,2.79,184.54,184.5,0.03666326]
[1755781897908,3.33250397,184.56,184.5,0.03666326]
[1755781898106,6.12250397,184.58,184.5,0.03666326]
[1755781898308,6.12250397,184.58,184.5,2.96666326]
[1755781901016,2.79,184.58,184.5,6.29916723]
[1755781901216,2.79,184.58,184.51,2.93]
[1755781901512,119.97408813,184.59,184.51,2.93]
[1755781901712,2.79,184.58,184.51,2.93]
[1755781902320,3.33250397,184.6,184.51,2.93]
[1755781902816,6.12250397,184.6,184.51,2.93]
[1755781903910,2.79,184.6,184.51,2.93]
[1755781904120,2.79,184.6,184.52,2.93]
[1755781904413,2.79,184.6,184.52,6.26250397]
[1755781904819,2.79,184.6,184.53,2.93]
[1755781905016,2.79,184.6,184.54,0.03837096]
[1755781905318,2.79,184.6,184.55,2.93]
[1755781905516,2.79,184.6,184.56,2.93]
[1755781905818,2.79,184.64,184.55,2.93]
[1755781907809,2.79,184.64,184.55,8.3491]
[1755781908817,2.79,184.64,184.55,2.93]
[1755781911211,3.33250397,184.61,184.54,0.03837096]
[1755781911421,2.79,184.6,184.54,0.03837096]
[1755781915220,3.33250397,184.59,184.54,0.03837096]
[1755781915618,2.89,184.55,184.54,0.03837096]
[1755781915917,2.89,184.58,184.54,0.03837096]
[1755781916324,3.33250397,184.59,184.54,0.03837096]
[1755781916521,2.89,184.56,184.54,0.03837096]
[1755781917121,3.33250397,184.59,184.54,0.03837096]
[1755781917321,2.89,184.55,184.54,0.03837096]
[1755781919414,2.89,184.54,184.44,82.79057801]
[1755781919619,2.89,184.51,184.44,82.79057801]
[1755781920426,2.89,184.49,184.44,82.79057801]
[1755781920623,2.89,184.48,184.44,85.72057801]
[1755781920818,0.03613957,184.49,184.44,85.72057801]
[1755781921023,2.89,184.48,184.44,85.72057801]
[1755781921826,2.89,184.48,184.41,2.93]
[1755781922024,6.22250397,184.48,184.41,2.93]
[1755781922221,6.22250397,184.48,184.36,134.86]
[1755781922222,2.89,184.47,184.37,367.39]
[1755781922427,19.61250397,184.59,184.37,367.39]
[1755781922428,3.33250397,184.44,184.37,367.39]
[1755781922932,0.03421575,184.46,184.37,367.39]
[1755781922933,0.03421575,184.46,184.38,2.93]
[1755781923119,0.03421575,184.46,184.42,3.33250397]
[1755781923322,0.03421575,184.46,184.43,2.93]
[1755781923528,0.03421575,184.46,184.42,3.33250397]
[1755781923828,0.03421575,184.46,184.45,2.93]
[1755781925128,2.89,184.55,184.45,3.47]
[1755781925325,2.89,184.55,184.46,5.4218]
[1755781925528,2.89,184.55,184.47,2.93]
[1755781925728,2.89,184.55,184.47,6.26250397]
[1755781926430,2.89,184.55,184.49,0.03474735]
[1755781926932,2.89,184.55,184.49,2.96474735]
[1755781928131,6.22250397,184.55,184.49,0.03474735]
[1755781929231,2.89,184.55,184.49,0.03474735]
[1755781929431,6.22250397,184.59,184.5,2.93]
[1755781929928,2.89,184.59,184.5,2.93]
[1755781930123,6.22250397,184.59,184.5,2.93]
[1755781930730,6.22250397,184.59,184.53,0.03505666]
[1755781931627,2.89,184.58,184.53,0.03505666]
[1755781931832,2.89,184.55,184.53,0.03505666]
[1755781932031,2.89,184.54,184.53,0.03505666]
[1755781934834,6.22250397,184.57,184.53,0.03505666]
[1755781935034,2.89,184.55,184.53,0.03505666]
[1755781935328,2.89,184.56,184.53,0.03505666]
[1755781935528,2.89,184.54,184.53,0.03505666]
[1755781936528,3.33250397,184.57,184.53,0.03505666]
[1755781936733,2.89,184.55,184.53,0.03505666]
[1755781939130,2.89,184.56,184.53,0.03505666]
[1755781939635,2.89,184.54,184.53,0.03505666]
[1755781943527,2.97,184.53,184.42,6.21250397]
[1755781943738,3.33250397,184.51,184.42,2.88]
[1755781943937,0.03917119,184.55,184.42,2.88]
[1755781943938,3.33250397,184.49,184.42,2.88]
[1755781944135,2.97,184.48,184.38,2.88]
[1755781944927,0.04171552,184.45,184.38,8.304]
[1755781945236,0.04171552,184.45,184.38,2.88]
[1755781948138,0.04171552,184.45,184.38,8.3041]
[1755781948339,0.04171552,184.45,184.39,2.88]
[1755781951041,0.04171552,184.45,184.39,8.3038]
[1755781951436,0.04171552,184.45,184.4,2.88]
[1755781951742,0.04171552,184.45,184.38,5.4241]
[1755781951932,0.04171552,184.45,184.39,2.88]
[1755781953647,0.04171552,184.45,184.42,3.33250397]
[1755781953841,0.04171552,184.45,184.44,2.88]
[1755781954949,0.04171552,184.45,184.44,6.21250397]
[1755781955141,0.04171552,184.45,184.44,11.63500397]
[1755781956153,0.04171552,184.45,184.44,6.21250397]
[1755781956852,0.04171552,184.45,184.44,11.63500397]
[1755781957449,2.97,184.58,184.47,2.88]
[1755781957651,2.97,184.58,184.48,3.33250397]
[1755781957853,2.97,184.58,184.49,2.88]
[1755781958849,2.97,184.58,184.52,0.04069343]
[1755781960056,2.97,184.53,184.52,0.04069343]
[1755781970856,3.33250397,184.54,184.52,0.04069343]
[1755781971064,2.97,184.56,184.53,2.88]
[1755781971763,2.97,184.56,184.52,0.04069343]
[1755781972264,2.97,184.59,184.53,2.88]
[1755781975459,3.33250397,184.57,184.52,0.04069343]
[1755781975761,2.95,184.56,184.52,3.05069343]
[1755781976363,2.95,184.55,184.52,3.05069343]
[1755781979561,2.95,184.56,184.52,0.04069343]
[1755781979763,2.95,184.54,184.52,0.04069343]
[1755781979969,3.33250397,184.55,184.52,0.04069343]
[1755781979970,2.95,184.53,184.52,0.04069343]
[1755781980264,6.28250397,184.53,184.52,0.04069343]
[1755781980472,2.95,184.52,184.41,3.01]
[1755781980662,6.28250397,184.46,184.41,3.01]
[1755781980863,6.28250397,184.46,184.38,134.62]
[1755781980864,6.28250397,184.46,184.42,3.01]
[1755781981259,6.28250397,184.49,184.4,3.01]
[1755781981866,0.04004131,184.46,184.4,3.01]
[1755781985366,2.95,184.44,184.4,3.01]
[1755781985568,6.28250397,184.43,184.35,3.01]
[1755781985771,3.33250397,184.41,184.35,3.01]
[1755781986470,3.33250397,184.41,184.31,3.33250397]
[1755781986471,0.03996731,184.4,184.32,3.01]
[1755781987267,3.33250397,184.38,184.32,3.01]
[1755781987466,3.33250397,184.36,184.32,3.01]
[1755781987670,3.33250397,184.36,184.28,254.82617863]
[1755781987872,3.33250397,184.36,184.3,3.01]
[1755781988469,0.0383475,184.34,184.32,3.01]
[1755781988670,0.0383475,184.34,184.28,254.82617863]
[1755781988872,0.0383475,184.34,184.33,3.01]
[1755781989263,0.0383475,184.34,184.3,3.01]
[1755781989465,0.0383475,184.34,184.32,3.01]
[1755781989969,0.0383475,184.34,184.26,3.33250397]
[1755781990274,0.0383475,184.34,184.3,3.01]
[1755781990477,0.0383475,184.34,184.32,3.01]
[1755781990662,0.0383475,184.34,184.3,3.01]
[1755781991563,0.0383475,184.34,184.32,3.01]
[1755781991965,0.0383475,184.34,184.33,3.01]
[1755781993674,83.35711677,184.45,184.34,3.01]
[1755781993675,3.33250397,184.44,184.34,3.01]
[1755781993873,3.33250397,184.44,184.34,8.4354]
[1755781994074,3.33250397,184.44,184.35,3.01]
[1755781994473,83.35711677,184.45,184.36,6.34250397]
[1755781994672,83.35711677,184.45,184.37,3.01]
[1755781994876,83.35711677,184.45,184.39,0.04028691]
[1755781995776,83.35711677,184.45,184.4,3.01]
[1755781995972,83.35711677,184.45,184.39,0.04028691]
[1755781996373,83.35711677,184.45,184.39,3.05028691]
[1755781998475,3.33250397,184.48,184.39,3.05028691]
[1755781998683,2.95,184.49,184.39,3.05028691]
[1755782002777,2.95,184.49,184.41,3.05]
[1755782003680,2.95,184.49,184.43,0.03946276]
[1755782004470,9.73838397,184.5,184.43,0.03946276]
[1755782004471,2.82,184.47,184.43,0.03946276]
[1755782004675,3.33250397,184.48,184.43,0.03946276]
[1755782005076,2.82,184.44,184.43,0.03946276]
[1755782006381,2.82,184.43,184.34,3.05]
[1755782006574,3.33250397,184.42,184.34,3.05]
[1755782007078,2.82,184.43,184.34,3.05]
[1755782007274,6.15250397,184.46,184.37,3.05]
[1755782007578,2.82,184.46,184.38,3.33250397]
[1755782007884,0.03483675,184.4,184.39,3.05]
[1755782008081,2.82,184.46,184.39,3.05]
[1755782008283,12.55838397,184.5,184.4,3.33250397]
[1755782008483,12.55838397,184.5,184.42,3.33250397]
[1755782008484,6.40588,184.5,184.42,3.33250397]
[1755782008785,6.40588,184.5,184.43,0.03569059]
[1755782008979,2.82,184.49,184.43,0.03569059]
[1755782009584,3.33250397,184.48,184.43,0.03569059]
[1755782009782,2.82,184.47,184.43,0.03569059]
[1755782009982,2.82,184.46,184.43,0.03569059]
[1755782010192,2.82,184.44,184.43,0.03569059]
[1755782011481,6.15250397,184.44,184.43,0.03569059]
[1755782013789,3.87250397,184.44,184.33,3.05]
[1755782013987,6.15250397,184.41,184.33,3.05]
[1755782015183,3.36770406,184.39,184.29,364.3]
[1755782015387,2.82,184.38,184.3,3.05]
[1755782015585,3.33250397,184.37,184.3,3.05]
[1755782015786,2.82,184.36,184.3,3.05]
[1755782015987,0.03520009,184.39,184.3,6.38250397]
[1755782016184,6.15250397,184.4,184.3,6.38250397]
[1755782016683,0.03842909,184.36,184.3,6.38250397]
[1755782016886,0.03842909,184.36,184.31,3.05]
[1755782017084,0.03842909,184.36,184.33,3.05]
[1755782017280,0.03842909,184.36,184.31,3.05]
[1755782017483,0.03842909,184.36,184.32,3.05]
[1755782017678,0.03842909,184.36,184.33,3.05]
[1755782017981,0.03842909,184.36,184.34,3.05]
[1755782018488,0.03842909,184.36,184.33,3.33250397]
[1755782018690,6.15250397,184.45,184.35,3.05]
[1755782019089,6.15250397,184.45,184.37,3.05]
[1755782019292,2.82,184.45,184.37,3.05]
[1755782019890,3.33250397,184.48,184.37,3.05]
[1755782019891,3.33250397,184.48,184.38,3.33250397]
[1755782020086,6.15250397,184.48,184.39,3.08533998]
[1755782021286,2.82,184.47,184.39,3.08533998]
[1755782022496,3.33250397,184.46,184.39,0.03533998]
[1755782022690,2.82,184.45,184.39,0.03533998]
[1755782023894,2.82,184.49,184.4,3.05]
[1755782024693,2.82,184.49,184.43,0.0413515]
[1755782026596,6.15250397,184.49,184.43,0.0413515]
[1755782028398,2.82,184.48,184.43,0.0413515]
[1755782028598,3.33250397,184.49,184.43,0.0413515]
[1755782028792,2.82,184.45,184.43,0.0413515]
[1755782029098,3.33250397,184.49,184.43,0.0413515]
[1755782029099,3.33250397,184.47,184.43,0.0413515]
[1755782029497,2.82,184.46,184.43,0.0413515]
[1755782029696,2.82,184.44,184.43,0.0413515]
[1755782031996,6.15250397,184.44,184.43,0.0413515]
[1755782035199,2.87,184.43,184.34,134.54]
[1755782035400,2.87,184.4,184.34,134.54]
[1755782035906,2.87,184.4,184.33,2.85]
[1755782036604,0.0406288,184.38,184.32,2.85]
[1755782038105,0.0406288,184.38,184.32,8.276]
[1755782038303,0.0406288,184.38,184.34,3.33250397]
[1755782038506,0.0406288,184.38,184.35,2.85]
[1755782038898,0.0406288,184.38,184.34,8.75780397]
[1755782039103,0.0406288,184.38,184.37,2.85]
[1755782039306,0.0406288,184.38,184.37,6.18250397]
[1755782039906,0.0406288,184.38,184.37,2.85]
[1755782042606,0.0406288,184.38,184.37,8.2745]
[1755782042808,3.33250397,184.46,184.38,2.85]
[1755782043013,2.87,184.48,184.38,6.18250397]
[1755782043310,2.87,184.48,184.38,8.75670397]
[1755782043507,2.87,184.48,184.39,2.85]
[1755782044007,2.87,184.48,184.42,0.04016929]
[1755782047818,9.27588,184.5,184.43,2.85]
[1755782049022,9.27588,184.5,184.43,6.18250397]
[1755782050015,2.87,184.49,184.42,0.04016929]
[1755782050421,2.87,184.46,184.42,0.04016929]
[1755782050724,3.33250397,184.48,184.42,0.04016929]
[1755782051021,2.87,184.43,184.42,0.04016929]
[1755782054519,3.41,184.43,184.31,2.85]
[1755782054720,6.20250397,184.39,184.31,2.85]
[1755782055921,0.03642939,184.37,184.31,2.85]
[1755782056424,6.23893336,184.37,184.31,2.85]
[1755782056619,6.23893336,184.37,184.25,137.79250397]
[1755782056821,2.87,184.36,184.26,2.85]
[1755782057219,3.33250397,184.35,184.26,2.85]
[1755782057525,0.03797831,184.33,184.26,2.85]
[1755782058230,2.87,184.32,184.26,2.85]
[1755782058520,2.87,184.32,184.22,138.2538952]
[1755782059319,0.03697641,184.29,184.24,3.33250397]
[1755782059523,0.03697641,184.29,184.27,2.85]
[1755782059722,3.33250397,184.35,184.28,2.85]
[1755782060129,0.04064433,184.3,184.29,2.85]
[1755782060626,3.33250397,184.35,184.29,2.85]
[1755782061124,2.87,184.36,184.3,2.85]
[1755782061125,0.03820964,184.31,184.3,2.85]
[1755782061627,2.87,184.36,184.3,2.85]
[1755782062228,0.04039959,184.35,184.3,2.85]
[1755782062428,2.91039959,184.35,184.3,2.85]
[1755782062823,2.91039959,184.35,184.3,3.06]
[1755782063024,2.91039959,184.35,184.26,3.06]
[1755782066133,3.33250397,184.34,184.26,3.06]
[1755782066328,2.9,184.33,184.26,3.06]
[1755782067030,2.9,184.31,184.22,3.06]
[1755782067931,0.03625036,184.28,184.22,3.06]
[1755782073432,3.36875433,184.28,184.19,364.48]
[1755782073635,0.03625036,184.28,184.22,3.06]
[1755782073834,0.03625036,184.28,184.23,3.33250397]
[1755782074236,0.03625036,184.28,184.27,3.06]
[1755782077339,2.9,184.41,184.27,3.6]
[1755782077642,2.9,184.41,184.32,6.39250397]
[1755782077938,2.9,184.41,184.32,3.06]
[1755782078634,2.9,184.41,184.35,0.03515368]
[1755782079533,2.9,184.39,184.35,0.03515368]
[1755782079737,2.9,184.36,184.35,0.03515368]
[1755782079932,2.9,184.36,184.29,3.06]
[1755782080440,2.9,184.35,184.34,0.03879241]
[1755782083835,2.9,184.37,184.34,0.03879241]
[1755782084237,3.33250397,184.4,184.34,0.03879241]
[1755782084636,2.9,184.39,184.34,0.03879241]
[1755782084846,2.9,184.38,184.34,0.03879241]
[1755782085142,2.9,184.39,184.34,0.03879241]
[1755782085328,3.33250397,184.38,184.34,0.03879241]
[1755782085528,2.9,184.37,184.34,0.03879241]
[1755782085735,2.9,184.35,184.34,0.03879241]
[1755782086136,3.33250397,184.38,184.34,0.03879241]
[1755782086342,2.9,184.38,184.34,3.09879241]
[1755782088342,3.33250397,184.41,184.34,0.03879241]
[1755782093443,2.8,184.4,184.34,0.03879241]
[1755782097843,2.8,184.38,184.34,0.03879241]
[1755782098043,3.33250397,184.35,184.34,0.03879241]
[1755782098244,6.13250397,184.35,184.34,0.03879241]
[1755782098844,2.8,184.35,184.34,0.03879241]
[1755782099253,2.8,184.38,184.34,0.03879241]
[1755782099448,2.8,184.38,184.34,2.83879241]
[1755782099950,9.41981641,184.42,184.34,2.83879241]
[1755782100154,2.8,184.38,184.34,0.03879241]
[1755782100658,2.8,184.36,184.29,2.8]
[1755782100954,2.8,184.35,184.26,2.8]
[1755782101455,3.33250397,184.36,184.31,0.03507975]
[1755782102053,2.8,184.32,184.31,0.03507975]
[1755782102850,2.8,184.32,184.22,2.8]
[1755782103047,6.13250397,184.29,184.22,2.8]
[1755782103555,2.8,184.29,184.22,2.8]
[1755782104250,0.03767858,184.27,184.23,2.8]
[1755782104452,0.03767858,184.27,184.21,2.8]
[1755782106552,2.8,184.26,184.16,2.8]
[1755782106858,3.33250397,184.25,184.16,2.8]
[1755782107055,2.8,184.26,184.16,8.2305]
[1755782107252,2.8,184.26,184.17,2.8]
[1755782107852,0.03701103,184.23,184.17,2.8]
[1755782108154,3.369515,184.23,184.13,2.8]
[1755782108362,3.33250397,184.21,184.13,2.8]
[1755782109150,2.8,184.2,184.13,2.8]
[1755782109356,3.33250397,184.18,184.13,2.8]
[1755782109649,6.13250397,184.18,184.13,2.8]
[1755782110264,0.0358631,184.17,184.13,2.8]
[1755782110459,0.0358631,184.17,184.14,2.8]
[1755782110662,0.0358631,184.17,184.16,2.8]
[1755782111058,0.0358631,184.17,184.11,2.8]
[1755782113857,0.0358631,184.17,184.09,365.6249332]
[1755782114059,3.36836707,184.17,184.09,367.48]
[1755782114468,3.36836707,184.17,184.1,2.8]
[1755782114668,0.0358631,184.17,184.1,2.8]
[1755782114969,0.0358631,184.17,184.12,2.8]
[1755782115465,0.0358631,184.17,184.09,365.62517702]
[1755782115466,0.0358631,184.17,184.16,2.8]
[1755782116069,3.33250397,184.28,184.16,2.8]
[1755782116263,6.13250397,184.28,184.16,2.8]
[1755782116572,2.8,184.25,184.16,2.8]
[1755782116966,2.8,184.29,184.18,2.8]
[1755782117164,2.8,184.29,184.14,134.46]
[1755782117165,3.33250397,184.29,184.21,2.8]
[1755782117363,3.33250397,184.31,184.21,2.8]
[1755782117766,3.33250397,184.31,184.24,2.8]
[1755782118373,3.33250397,184.34,184.26,0.03600084]
[1755782118674,3.33250397,184.34,184.27,2.8]
[1755782119270,3.33250397,184.32,184.29,0.03452017]
[1755782119475,6.13250397,184.3,184.29,0.03452017]
[1755782120272,3.33250397,184.28,184.21,2.8]
[1755782120664,2.8,184.25,184.18,2.8]
[1755782121563,0.0372236,184.23,184.16,3.33250397]
[1755782121877,0.0372236,184.23,184.19,2.8]
[1755782122071,0.0372236,184.23,184.17,2.8]
[1755782122268,0.0372236,184.23,184.19,2.8]
[1755782122464,0.0372236,184.23,184.2,2.8]
[1755782122668,0.0372236,184.23,184.22,2.99]
[1755782122876,0.0372236,184.23,184.17,2.99]
[1755782124374,0.0372236,184.23,184.19,2.99]
[1755782124572,0.0372236,184.23,184.16,5.44669212]
[1755782124770,0.0372236,184.23,184.22,2.99]
[1755782125070,0.0372236,184.23,184.17,2.99]
[1755782126872,2.9472236,184.23,184.17,2.99]
[1755782127666,0.0372236,184.23,184.17,2.99]
[1755782131876,0.0372236,184.23,184.18,5.44669212]
[1755782132080,0.0372236,184.23,184.19,2.99]
[1755782132277,0.0372236,184.23,184.21,2.99]
[1755782132475,0.0372236,184.23,184.22,2.99]
[1755782134391,6.38789,184.27,184.22,0.54]
[1755782134690,6.38789,184.27,184.21,5.48667153]
[1755782134891,6.38789,184.27,184.25,2.99]
[1755782135091,6.38789,184.27,184.26,2.99]
[1755782136490,2.91,184.37,184.26,3.53]
[1755782136797,2.91,184.37,184.27,5.44669212]
[1755782137394,2.91,184.37,184.3,0.03699245]
[1755782144402,6.24941144,184.37,184.3,0.03699245]
[1755782145102,2.91,184.37,184.31,2.99]
[1755782147196,2.91,184.37,184.3,0.03699245]
[1755782150700,6.24941144,184.37,184.3,0.03699245]
[1755782150906,2.91,184.36,184.3,0.03699245]
[1755782151101,3.33941144,184.35,184.3,0.03699245]
[1755782151306,2.91,184.33,184.3,0.03699245]
[1755782151496,3.33941144,184.35,184.3,0.03699245]
[1755782151702,2.91,184.34,184.3,0.03699245]
[1755782151999,2.91,184.37,184.31,2.99]
[1755782152306,2.91,184.37,184.3,0.03699245]
[1755782152606,3.33941144,184.36,184.3,0.03699245]
[1755782153205,3.07,184.33,184.3,0.03699245]
[1755782154406,3.07,184.32,184.3,0.03699245]
[1755782154806,3.07,184.31,184.3,0.03699245]
[1755782158208,3.33941144,184.34,184.3,0.03699245]
[1755782158407,3.07,184.33,184.3,0.03699245]
[1755782158707,3.33941144,184.34,184.3,0.03699245]
[1755782158708,3.07,184.31,184.3,0.03699245]
[1755782160403,3.61,184.31,184.2,3.06]
[1755782160604,3.07,184.26,184.2,3.06]
[1755782161004,3.07,184.26,184.17,3.06]
[1755782163011,3.07,184.26,184.17,8.4903]
[1755782163312,3.07,184.26,184.17,3.06]
[1755782164216,0.03523802,184.24,184.17,3.06]
[1755782166608,3.10523802,184.24,184.17,3.06]
[1755782166812,3.33941144,184.23,184.14,3.06]
[1755782167607,3.33941144,184.23,184.13,134.36]
[1755782167608,3.07,184.22,184.13,134.36]
[1755782167820,3.33941144,184.21,184.13,134.36]
[1755782168118,3.07,184.2,184.13,134.36]
[1755782168307,3.33941144,184.19,184.13,134.36]
[1755782168508,3.37430464,184.19,184.13,134.36]
[1755782168913,3.33941144,184.17,184.07,3.06]
[1755782169119,3.07,184.16,184.07,3.06]
[1755782169919,0.03645736,184.13,184.07,3.06]
[1755782170918,0.03645736,184.13,184.07,6.39941144]
[1755782171114,0.03645736,184.13,184.1,3.06]
[1755782171314,0.03645736,184.13,184.11,3.06]
[1755782171513,0.03645736,184.13,184.12,3.06]
[1755782174521,12.4703801,184.32,184.12,134.36]
[1755782174522,6.40941144,184.24,184.12,134.36]
[1755782174825,3.07,184.24,184.15,3.06]
[1755782175824,3.07,184.24,184.18,0.03924049]
[1755782177416,3.33941144,184.23,184.18,0.03924049]
[1755782177615,3.07,184.2,184.18,0.03924049]
[1755782177820,3.07,184.19,184.12,6.39941144]
[1755782178023,3.07,184.19,184.12,3.06]
[1755782178223,3.07,184.19,184.17,0.04012012]
[1755782178424,3.07,184.18,184.17,0.04012012]
[1755782182529,3.33941144,184.2,184.17,0.04012012]
[1755782182730,6.19941144,184.2,184.17,0.04012012]
[1755782182924,6.19941144,184.2,184.11,6.39941144]
[1755782183324,6.19941144,184.2,184.17,0.03752463]
[1755782183531,2.86,184.19,184.17,0.03752463]
[1755782183926,3.33941144,184.22,184.18,2.81]
[1755782184131,3.33941144,184.24,184.18,2.81]
[1755782184325,2.86,184.23,184.17,0.03752463]
[1755782189532,2.86,184.21,184.17,0.03752463]
[1755782189732,2.86,184.21,184.17,2.84752463]
[1755782189932,3.33941144,184.24,184.17,2.81]
[1755782190133,2.86,184.23,184.14,2.81]
[1755782190332,2.86,184.23,184.17,0.03528073]
[1755782192431,3.33941144,184.24,184.17,0.03528073]
[1755782192432,2.86,184.21,184.17,0.03528073]
[1755782192737,2.86,184.2,184.17,0.03528073]
[1755782193037,2.86,184.2,184.13,6.14941144]
[1755782193237,2.86,184.2,184.17,0.04111709]
[1755782193432,3.33941144,184.22,184.17,0.04111709]
[1755782193632,2.86,184.19,184.17,0.04111709]
[1755782194433,2.86,184.18,184.17,0.04111709]
[1755782196833,3.33941144,184.22,184.17,0.04111709]
[1755782197038,2.86,184.2,184.17,0.04111709]
[1755782197231,2.86,184.19,184.17,0.04111709]
[1755782197539,2.86,184.18,184.17,0.04111709]
[1755782197740,6.19941144,184.18,184.17,0.04111709]
[1755782197928,6.19941144,184.18,184.09,2.81]
[1755782198333,6.19941144,184.18,184.16,0.03878446]
[1755782198534,2.86,184.17,184.16,0.03878446]
[1755782198734,2.86,184.22,184.11,2.81]
[1755782198939,2.86,184.22,184.13,2.81]
[1755782199141,2.86,184.22,184.15,0.04142562]
[1755782200636,2.86,184.2,184.15,0.04142562]
[1755782200832,2.86,184.19,184.16,2.81]
[1755782201037,6.19941144,184.22,184.16,2.81]
[1755782201232,6.19941144,184.22,184.15,0.04142562]
[1755782202641,2.86,184.22,184.16,2.81]
[1755782202839,2.86,184.26,184.16,2.81]
[1755782203143,2.86,184.26,184.18,3.33941144]
[1755782203446,3.33941144,184.28,184.19,2.81]
[1755782203737,3.33941144,184.28,184.2,0.04134019]
[1755782204242,2.86,184.27,184.2,0.04134019]
[1755782204931,2.86,184.27,184.21,2.81]
[1755782206142,2.86,184.27,184.2,0.04134019]
[1755782206540,3.33941144,184.26,184.2,0.04134019]
[1755782206751,2.86,184.27,184.2,0.04134019]
[1755782211157,6.08731244,184.28,184.2,0.04134019]
[1755782211452,2.86,184.22,184.2,0.04134019]
[1755782212052,2.86,184.23,184.2,0.04134019]
[1755782212255,3.33941144,184.25,184.2,0.04134019]
[1755782212453,2.86,184.22,184.2,0.04134019]
[1755782213255,3.03,184.25,184.21,2.81]
[1755782213656,3.33941144,184.27,184.21,2.81]
[1755782214256,6.36941144,184.29,184.21,2.81]
[1755782219351,3.03,184.28,184.21,2.81]
[1755782220052,3.03,184.28,184.2,0.04134019]
[1755782221460,3.03,184.24,184.2,0.04134019]
[1755782221664,3.33941144,184.25,184.2,0.04134019]
[1755782221964,3.03,184.21,184.2,0.04134019]
[1755782222259,3.03,184.24,184.2,0.04134019]
[1755782222455,3.03,184.23,184.2,0.04134019]
[1755782222659,6.36941144,184.27,184.21,2.81]
[1755782222963,3.03,184.26,184.2,0.04134019]
[1755782223264,3.03,184.26,184.16,2.81]
[1755782223566,3.33941144,184.27,184.21,0.03733356]
[1755782223956,3.03,184.23,184.21,0.03733356]